[Event "Mitropa Cup 2023 Open selection"]
[Site "Mali Losinj, Croatia"]
[Date "2023.04.11"]
[Round "1.5"]
[White "Vykouk, Jan"]
[Black "Koellner, Ruben Gideon"]
[Result "1/2-1/2"]
[TimeControl "90 min + 30 min after 40 moves + 30 sec increment from move 1"]
[WhiteElo "2462"]
[BlackElo "2421"]

1. e4 {[%clk 01:30:57]} {[%emt 00:00:02]} e5 {[%clk 01:30:54]} {[%emt
00:00:07]} 2. Nf3 {[%clk 01:31:22]} {[%emt 00:00:05]} Nc6 {[%clk 01:31:20]}
{[%emt 00:00:04]} 3. Bc4 {[%clk 01:31:45]} {[%emt 00:00:06]} Bc5 {[%clk
01:31:42]} {[%emt 00:00:08]} 4. d3 {[%clk 01:32:05]} {[%emt 00:00:11]} Nf6
{[%clk 01:32:03]} {[%emt 00:00:09]} 5. Nbd2 {[%clk 01:32:04]} {[%emt 00:00:31]}
d6 {[%clk 01:32:18]} {[%emt 00:00:15]} 6. c3 {[%clk 01:32:18]} {[%emt
00:00:15]} O-O {[%clk 01:29:52]} {[%emt 00:02:56]} 7. O-O {[%clk 01:32:42]}
{[%emt 00:00:06]} a5 {[%clk 01:30:20]} {[%emt 00:00:03]} 8. h3 {[%clk
01:33:01]} {[%emt 00:00:11]} h6 {[%clk 01:30:09]} {[%emt 00:00:41]} 9. Re1
{[%clk 01:33:23]} {[%emt 00:00:08]} Be6 {[%clk 01:29:27]} {[%emt 00:01:11]} 10.
Bb5 {[%clk 01:33:45]} {[%emt 00:00:08]} Nd7 {[%clk 01:28:16]} {[%emt 00:01:41]}
11. Nf1 {[%clk 01:31:06]} {[%emt 00:03:09]} f5 {[%clk 01:24:38]} {[%emt
00:04:09]} 12. exf5 {[%clk 01:28:15]} {[%emt 00:03:22]} Bxf5 {[%clk 01:25:00]}
{[%emt 00:00:08]} 13. Ng3 {[%clk 01:28:32]} {[%emt 00:00:13]} Bg6 {[%clk
01:24:45]} {[%emt 00:00:44]} 14. d4 {[%clk 01:27:24]} {[%emt 00:01:39]} exd4
{[%clk 01:15:12]} {[%emt 00:10:03]} 15. cxd4 {[%clk 01:27:23]} {[%emt
00:00:31]} Bb6 {[%clk 01:15:25]} {[%emt 00:00:16]} 16. Bd3 {[%clk 01:23:35]}
{[%emt 00:04:18]} Bxd3 {[%clk 01:08:39]} {[%emt 00:07:17]} 17. Qxd3 {[%clk
01:23:59]} {[%emt 00:00:05]} Qf6 {[%clk 01:07:09]} {[%emt 00:01:59]} 18. Be3
{[%clk 01:21:03]} {[%emt 00:03:28]} Nb4 {[%clk 01:04:22]} {[%emt 00:03:17]} 19.
Qb1 {[%clk 01:04:44]} {[%emt 00:16:49]} Rae8 {[%clk 01:00:10]} {[%emt
00:04:41]} 20. a3 {[%clk 01:04:46]} {[%emt 00:00:29]} Nd5 {[%clk 01:00:29]}
{[%emt 00:00:10]} 21. Qa2 {[%clk 01:05:10]} {[%emt 00:00:07]} c6 {[%clk
00:54:14]} {[%emt 00:06:45]} 22. Qc4 {[%clk 01:04:42]} {[%emt 00:00:58]} Kh8
{[%clk 00:49:11]} {[%emt 00:05:32]} 23. Qd3 {[%clk 00:59:50]} {[%emt 00:05:23]}
Nxe3 {[%clk 00:32:46]} {[%emt 00:16:56]} 24. Rxe3 {[%clk 00:59:57]} {[%emt
00:00:22]} Qf7 {[%clk 00:21:17]} {[%emt 00:11:57]} 25. Rae1 {[%clk 00:53:01]}
{[%emt 00:07:28]} Rxe3 {[%clk 00:19:18]} {[%emt 00:02:29]} 26. Qxe3 {[%clk
00:48:43]} {[%emt 00:04:48]} Ne5 {[%clk 00:16:19]} {[%emt 00:03:30]} 27. Nh4
{[%clk 00:42:59]} {[%emt 00:06:13]} Nc4 {[%clk 00:12:21]} {[%emt 00:04:28]} 28.
Qe7 {[%clk 00:42:42]} {[%emt 00:00:47]} Kg8 {[%clk 00:08:59]} {[%emt 00:03:50]}
29. Nhf5 {[%clk 00:34:07]} {[%emt 00:09:07]} Qxe7 {[%clk 00:06:01]} {[%emt
00:03:28]} 30. Rxe7 {[%clk 00:34:16]} {[%emt 00:00:21]} Rf7 {[%clk 00:06:27]}
{[%emt 00:00:03]} 31. Re2 {[%clk 00:24:31]} {[%emt 00:10:16]} Kh7 {[%clk
00:06:22]} {[%emt 00:00:34]} 32. a4 {[%clk 00:22:48]} {[%emt 00:02:14]} g6
{[%clk 00:04:01]} {[%emt 00:02:51]} 33. Ne3 {[%clk 00:23:12]} {[%emt 00:00:05]}
d5 {[%clk 00:04:13]} {[%emt 00:00:18]} 34. b3 {[%clk 00:23:31]} {[%emt
00:00:12]} Nd6 {[%clk 00:04:28]} {[%emt 00:00:15]} 35. Rd2 {[%clk 00:23:52]}
{[%emt 00:00:09]} h5 {[%clk 00:04:40]} {[%emt 00:00:16]} 36. f3 {[%clk
00:23:31]} {[%emt 00:00:52]} Kg7 {[%clk 00:02:02]} {[%emt 00:03:07]} 37. Ne2
{[%clk 00:20:58]} {[%emt 00:03:03]} Bd8 {[%clk 00:01:04]} {[%emt 00:01:28]} 38.
Rd3 {[%clk 00:20:34]} {[%emt 00:00:55]} Bb6 {[%clk 00:00:57]} {[%emt 00:00:37]}
39. g4 {[%clk 00:15:20]} {[%emt 00:05:43]} hxg4 {[%clk 00:00:43]} {[%emt
00:00:44]} 40. hxg4 {[%clk 00:45:42]} {[%emt 00:00:09]} Bd8 {[%clk 00:30:43]}
{[%emt 00:00:30]} 41. Kg2 {[%clk 00:45:32]} {[%emt 00:00:40]} Ne8 {[%clk
00:26:42]} {[%emt 00:04:28]} 42. Nc2 {[%clk 00:42:48]} {[%emt 00:03:16]} Nc7
{[%clk 00:23:44]} {[%emt 00:03:28]} 43. Re3 {[%clk 00:42:28]} {[%emt 00:00:51]}
Re7 {[%clk 00:23:12]} {[%emt 00:01:00]} 44. Rxe7+ {[%clk 00:42:40]} {[%emt
00:00:20]} Bxe7 {[%clk 00:23:36]} {[%emt 00:00:06]} 45. f4 {[%clk 00:42:31]}
{[%emt 00:00:39]} Ne8 {[%clk 00:16:56]} {[%emt 00:07:08]} 46. Kf3 {[%clk
00:42:40]} {[%emt 00:00:22]} Nd6 {[%clk 00:16:22]} {[%emt 00:01:04]} 47. Nc3
{[%clk 00:40:22]} {[%emt 00:02:49]} Ne8 {[%clk 00:16:33]} {[%emt 00:00:18]} 48.
Nd1 {[%clk 00:38:25]} {[%emt 00:02:29]} Nd6 {[%clk 00:16:22]} {[%emt 00:00:41]}
49. Nc3 {[%clk 00:36:06]} {[%emt 00:02:49]} Ne8 {[%clk 00:16:46]} {[%emt
00:00:06]} 50. Nd1 {[%clk 00:36:30]} {[%emt 00:00:06]} 1/2-1/2

[Event "Mitropa Cup 2023 Open selection"]
[Site "Mali Losinj, Croatia"]
[Date "2023.04.11"]
[Round "1.6"]
[White "Deuer, Marius"]
[Black "Stalmach, Richard"]
[Result "1/2-1/2"]
[TimeControl "90 min + 30 min after 40 moves + 30 sec increment from move 1"]
[WhiteElo "2336"]
[BlackElo "2417"]

1. d4 {[%clk 01:30:58]} {[%emt 00:00:02]} Nf6 {[%clk 01:30:54]} {[%emt
00:00:06]} 2. c4 {[%clk 01:31:21]} {[%emt 00:00:06]} e6 {[%clk 01:31:15]}
{[%emt 00:00:09]} 3. Nc3 {[%clk 01:31:37]} {[%emt 00:00:13]} Bb4 {[%clk
01:31:37]} {[%emt 00:00:08]} 4. e3 {[%clk 01:30:53]} {[%emt 00:01:15]} O-O
{[%clk 01:31:50]} {[%emt 00:00:18]} 5. Nge2 {[%clk 01:30:49]} {[%emt 00:00:34]}
Re8 {[%clk 01:31:25]} {[%emt 00:00:54]} 6. a3 {[%clk 01:29:55]} {[%emt
00:01:24]} Bf8 {[%clk 01:31:48]} {[%emt 00:00:07]} 7. Ng3 {[%clk 01:30:00]}
{[%emt 00:00:25]} d5 {[%clk 01:31:19]} {[%emt 00:00:59]} 8. Be2 {[%clk
01:30:06]} {[%emt 00:00:24]} g6 {[%clk 01:31:14]} {[%emt 00:00:36]} 9. cxd5
{[%clk 01:18:49]} {[%emt 00:11:47]} exd5 {[%clk 01:31:18]} {[%emt 00:00:26]} 10.
Bf3 {[%clk 01:18:58]} {[%emt 00:00:21]} c6 {[%clk 01:27:58]} {[%emt 00:03:50]}
11. O-O {[%clk 01:18:31]} {[%emt 00:00:56]} Bg7 {[%clk 01:19:47]} {[%emt
00:08:41]} 12. b4 {[%clk 01:02:36]} {[%emt 00:16:25]} a6 {[%clk 01:14:49]}
{[%emt 00:05:27]} 13. Bb2 {[%clk 00:58:18]} {[%emt 00:04:48]} Nbd7 {[%clk
01:14:06]} {[%emt 00:01:14]} 14. e4 {[%clk 00:49:50]} {[%emt 00:08:59]} dxe4
{[%clk 01:13:15]} {[%emt 00:01:20]} 15. Ngxe4 {[%clk 00:50:08]} {[%emt
00:00:12]} Nb6 {[%clk 01:00:17]} {[%emt 00:13:28]} 16. Nxf6+ {[%clk 00:41:31]}
{[%emt 00:09:08]} Qxf6 {[%clk 00:59:54]} {[%emt 00:00:53]} 17. Ne4 {[%clk
00:41:26]} {[%emt 00:00:35]} Qf4 {[%clk 00:53:19]} {[%emt 00:07:05]} 18. g3
{[%clk 00:34:44]} {[%emt 00:07:12]} Qc7 {[%clk 00:53:30]} {[%emt 00:00:19]} 19.
Nc5 {[%clk 00:34:51]} {[%emt 00:00:24]} Bh3 {[%clk 00:51:24]} {[%emt 00:02:36]}
20. Re1 {[%clk 00:33:56]} {[%emt 00:01:24]} Nc4 {[%clk 00:42:39]} {[%emt
00:09:15]} 21. Bc3 {[%clk 00:32:43]} {[%emt 00:01:43]} Nd6 {[%clk 00:38:53]}
{[%emt 00:04:17]} 22. a4 {[%clk 00:25:32]} {[%emt 00:07:40]} Nf5 {[%clk
00:37:06]} {[%emt 00:02:18]} 23. Ne4 {[%clk 00:22:29]} {[%emt 00:03:33]} h6
{[%clk 00:29:11]} {[%emt 00:08:24]} 24. Qd2 {[%clk 00:16:15]} {[%emt 00:06:44]}
Red8 {[%clk 00:26:20]} {[%emt 00:03:22]} 25. d5 {[%clk 00:13:41]} {[%emt
00:03:04]} cxd5 {[%clk 00:18:07]} {[%emt 00:08:43]} 26. Nf6+ {[%clk 00:13:03]}
{[%emt 00:01:08]} Kh8 {[%clk 00:16:42]} {[%emt 00:01:55]} 27. Be5 {[%clk
00:08:35]} {[%emt 00:04:57]} Qb6 {[%clk 00:13:42]} {[%emt 00:03:31]} 28. Nxd5
{[%clk 00:06:24]} {[%emt 00:02:41]} Bxe5 {[%clk 00:13:19]} {[%emt 00:00:52]} 29.
Rxe5 {[%clk 00:05:40]} {[%emt 00:01:14]} Qd4 {[%clk 00:13:03]} {[%emt
00:00:47]} 30. Qe1 {[%clk 00:05:58]} {[%emt 00:00:12]} Qd3 {[%clk 00:06:59]}
{[%emt 00:06:35]} 31. Be4 {[%clk 00:04:48]} {[%emt 00:01:39]} Qd4 {[%clk
00:06:45]} {[%emt 00:00:44]} 32. Bxf5 {[%clk 00:04:11]} {[%emt 00:01:08]} Bxf5
{[%clk 00:07:04]} {[%emt 00:00:11]} 33. Rd1 {[%clk 00:04:15]} {[%emt 00:00:25]}
Qb2 {[%clk 00:04:04]} {[%emt 00:03:30]} 34. Qe3 {[%clk 00:02:31]} {[%emt
00:02:14]} Kg7 {[%clk 00:03:58]} {[%emt 00:00:36]} 35. Kg2 {[%clk 00:01:03]}
{[%emt 00:01:58]} Rd6 {[%clk 00:03:01]} {[%emt 00:01:27]} 36. Rd4 {[%clk
00:00:39]} {[%emt 00:00:54]} Be6 {[%clk 00:01:14]} {[%emt 00:02:17]} 37. Nc3
{[%clk 00:00:36]} {[%emt 00:00:33]} Rad8 {[%clk 00:01:03]} {[%emt 00:00:41]} 38.
Rh4 {[%clk 00:00:34]} {[%emt 00:00:32]} Rh8 {[%clk 00:00:41]} {[%emt 00:00:52]}
39. Rc5 {[%clk 00:00:34]} {[%emt 00:00:30]} Qd2 {[%clk 00:00:44]} {[%emt
00:00:27]} 40. Qe5+ {[%clk 00:30:38]} {[%emt 00:00:26]} f6 {[%clk 00:30:51]}
{[%emt 00:00:23]} 41. Qe4 {[%clk 00:12:41]} {[%emt 00:18:27]} Rhd8 {[%clk
00:08:09]} {[%emt 00:23:11]} 42. Qxb7+ {[%clk 00:09:57]} {[%emt 00:03:13]} R8d7
{[%clk 00:08:37]} {[%emt 00:00:03]} 43. Qf3 {[%clk 00:09:36]} {[%emt 00:00:50]}
Rd3 {[%clk 00:05:45]} {[%emt 00:03:22]} 44. Qf4 {[%clk 00:06:46]} {[%emt
00:03:21]} Qxf4 {[%clk 00:01:27]} {[%emt 00:04:49]} 45. Rxf4 {[%clk 00:07:06]}
{[%emt 00:00:10]} Kf7 {[%clk 00:00:48]} {[%emt 00:01:08]} 46. b5 {[%clk
00:04:11]} {[%emt 00:03:24]} a5 {[%clk 00:00:43]} {[%emt 00:00:36]} 47. h4
{[%clk 00:02:40]} {[%emt 00:02:02]} g5 {[%clk 00:00:49]} {[%emt 00:00:24]} 48.
hxg5 {[%clk 00:01:52]} {[%emt 00:01:18]} hxg5 {[%clk 00:01:18]} 49. Re4 {[%clk
00:02:06]} {[%emt 00:00:16]} g4 {[%clk 00:00:55]} {[%emt 00:00:54]} 50. Rc6
{[%clk 00:01:00]} {[%emt 00:01:36]} R7d6 {[%clk 00:01:24]} {[%emt 00:00:02]} 51.
Rxd6 {[%clk 00:00:42]} {[%emt 00:00:47]} Rxd6 {[%clk 00:01:53]} {[%emt
00:00:01]} 52. Re3 {[%clk 00:00:34]} {[%emt 00:00:38]} Rd4 {[%clk 00:01:54]}
{[%emt 00:00:29]} 53. f3 {[%clk 00:00:36]} {[%emt 00:00:29]} Rd2+ {[%clk
00:01:37]} {[%emt 00:00:47]} 54. Kg1 {[%clk 00:00:44]} {[%emt 00:00:22]} gxf3
{[%clk 00:01:10]} {[%emt 00:00:57]} 55. Rxf3 {[%clk 00:01:04]} {[%emt
00:00:10]} Rb2 {[%clk 00:00:52]} {[%emt 00:00:48]} 56. Rf4 {[%clk 00:00:43]}
{[%emt 00:00:51]} Rb3 {[%clk 00:00:35]} {[%emt 00:00:47]} 57. Ne4 {[%clk
00:00:57]} {[%emt 00:00:16]} Ke7 {[%clk 00:00:48]} {[%emt 00:00:18]} 58. Kf2
{[%clk 00:00:33]} {[%emt 00:00:54]} Rb4 {[%clk 00:01:02]} {[%emt 00:00:16]} 59.
Nc5 {[%clk 00:00:39]} {[%emt 00:00:24]} Rb2+ {[%clk 00:00:40]} {[%emt
00:00:52]} 60. Ke3 {[%clk 00:01:07]} {[%emt 00:00:01]} Bd5 {[%clk 00:00:33]}
{[%emt 00:00:37]} 61. Rd4 {[%clk 00:00:57]} {[%emt 00:00:39]} Kd6 {[%clk
00:00:42]} {[%emt 00:00:22]} 62. Nb7+ {[%clk 00:01:01]} {[%emt 00:00:26]} Ke5
{[%clk 00:00:42]} {[%emt 00:00:30]} 63. Nxa5 {[%clk 00:01:26]} {[%emt
00:00:05]} Rg2 {[%clk 00:01:10]} {[%emt 00:00:02]} 64. Nc6+ {[%emt 00:01:28]}
Bxc6 {[%clk 00:01:11]} {[%emt 00:00:24]} 65. bxc6 {[%clk 00:00:48]} {[%emt
00:00:15]} Rxg3+ {[%clk 00:01:29]} {[%emt 00:00:12]} 66. Kf2 {[%clk 00:01:13]}
{[%emt 00:00:05]} Rc3 {[%clk 00:01:56]} {[%emt 00:00:02]} 1/2-1/2

[Event "Mitropa Cup 2023 Open selection"]
[Site "Mali Losinj, Croatia"]
[Date "2023.04.11"]
[Round "1.7"]
[White "Mladek, Richard"]
[Black "Hagner, Bennet"]
[Result "0-1"]
[TimeControl "90 min + 30 min after 40 moves + 30 sec increment from move 1"]
[WhiteElo "2436"]
[BlackElo "2354"]

1. d4 {[%clk 01:30:57]} {[%emt 00:00:02]} Nf6 {[%clk 01:30:52]} {[%emt
00:00:08]} 2. c4 {[%clk 01:31:22]} {[%emt 00:00:06]} e6 {[%clk 01:31:15]}
{[%emt 00:00:07]} 3. Nc3 {[%clk 01:31:46]} {[%emt 00:00:06]} Bb4 {[%clk
01:31:36]} {[%emt 00:00:09]} 4. e3 {[%clk 01:32:09]} {[%emt 00:00:07]} O-O
{[%clk 01:31:55]} {[%emt 00:00:10]} 5. Bd2 {[%clk 01:32:31]} {[%emt 00:00:08]}
b6 {[%clk 01:32:05]} {[%emt 00:00:21]} 6. Nf3 {[%clk 01:32:36]} {[%emt
00:00:24]} d5 {[%clk 01:31:52]} {[%emt 00:00:43]} 7. cxd5 {[%clk 01:32:41]}
{[%emt 00:00:25]} exd5 {[%clk 01:32:16]} {[%emt 00:00:06]} 8. Rc1 {[%clk
01:33:02]} {[%emt 00:00:09]} Bb7 {[%clk 01:32:22]} {[%emt 00:00:25]} 9. Bd3
{[%clk 01:32:40]} {[%emt 00:00:51]} Re8 {[%clk 01:32:22]} {[%emt 00:00:29]} 10.
O-O {[%clk 01:30:39]} {[%emt 00:02:31]} Bf8 {[%clk 01:32:30]} {[%emt 00:00:22]}
11. Ne5 {[%clk 01:30:00]} {[%emt 00:01:09]} c5 {[%clk 01:32:54]} {[%emt
00:00:07]} 12. f4 {[%clk 01:30:07]} {[%emt 00:00:23]} Nc6 {[%clk 01:33:18]}
{[%emt 00:00:06]} 13. Ne2 {[%clk 01:29:01]} {[%emt 00:01:35]} Rc8 {[%clk
01:33:32]} {[%emt 00:00:16]} 14. Be1 {[%clk 01:26:45]} {[%emt 00:02:46]} Ne4
{[%clk 01:33:01]} {[%emt 00:01:01]} 15. Bxe4 {[%clk 01:26:07]} {[%emt
00:01:08]} dxe4 {[%clk 01:33:14]} {[%emt 00:00:16]} 16. Nxf7 {[%clk 01:23:40]}
{[%emt 00:02:57]} Kxf7 {[%clk 01:33:24]} {[%emt 00:00:20]} 17. Qb3+ {[%clk
01:23:08]} {[%emt 00:01:02]} c4 {[%clk 01:33:48]} {[%emt 00:00:06]} 18. Qxc4+
{[%clk 01:17:58]} {[%emt 00:05:40]} Kg6 {[%clk 01:34:05]} {[%emt 00:00:14]} 19.
Bg3 {[%clk 01:09:05]} {[%emt 00:09:23]} Ne5 {[%clk 01:32:48]} {[%emt 00:01:47]}
20. f5+ {[%clk 01:00:56]} {[%emt 00:08:38]} Kh6 {[%clk 01:33:02]} {[%emt
00:00:15]} 21. Qg8 {[%clk 00:55:25]} {[%emt 00:06:01]} Be7 {[%clk 01:32:29]}
{[%emt 00:01:04]} 22. Qe6+ {[%clk 00:50:37]} {[%emt 00:05:18]} Bf6 {[%clk
01:31:35]} {[%emt 00:01:24]} 23. Bf4+ {[%clk 00:50:50]} {[%emt 00:00:18]} g5
{[%clk 01:16:39]} {[%emt 00:15:26]} 24. fxg6+ {[%clk 00:49:38]} {[%emt
00:01:42]} Kg7 {[%clk 01:13:06]} {[%emt 00:04:02]} 25. Bh6+ {[%clk 00:38:57]}
{[%emt 00:11:12]} Kxh6 {[%clk 01:11:15]} {[%emt 00:02:21]} 26. Qh3+ {[%clk
00:39:18]} {[%emt 00:00:09]} Bh4 {[%clk 01:08:24]} {[%emt 00:03:22]} 27. Ng3
{[%clk 00:19:20]} {[%emt 00:20:28]} hxg6 {[%clk 00:55:58]} {[%emt 00:12:56]} 28.
dxe5 {[%clk 00:19:22]} {[%emt 00:00:27]} Rxc1 {[%clk 00:29:08]} {[%emt
00:27:21]} 29. Rxc1 {[%clk 00:19:45]} {[%emt 00:00:06]} Rxe5 {[%clk 00:29:33]}
{[%emt 00:00:05]} 30. Ne2 {[%clk 00:18:32]} {[%emt 00:01:43]} Ba6 {[%clk
00:26:26]} {[%emt 00:03:37]} 31. Nd4 {[%clk 00:14:56]} {[%emt 00:04:05]} Rc5
{[%emt 00:08:45]} 0-1

[Event "Mitropa Cup 2023 Open selection"]
[Site "Mali Losinj, Croatia"]
[Date "2023.04.11"]
[Round "1.8"]
[White "Besou, Hussain"]
[Black "Frank, Adam"]
[Result "0-1"]
[TimeControl "90 min + 30 min after 40 moves + 30 sec increment from move 1"]
[WhiteElo "2332"]
[BlackElo "2398"]

1. d4 {[%clk 01:30:56]} {[%emt 00:00:04]} Nf6 {[%clk 01:30:54]} {[%emt
00:00:07]} 2. c4 {[%clk 01:31:03]} {[%emt 00:00:23]} g6 {[%clk 01:31:13]}
{[%emt 00:00:12]} 3. Nc3 {[%clk 01:31:03]} {[%emt 00:00:29]} Bg7 {[%clk
01:31:37]} {[%emt 00:00:06]} 4. e4 {[%clk 01:31:27]} {[%emt 00:00:05]} d6
{[%clk 01:32:04]} {[%emt 00:00:04]} 5. h3 {[%clk 01:31:52]} {[%emt 00:00:05]}
Nbd7 {[%clk 01:32:19]} {[%emt 00:00:15]} 6. Be3 {[%clk 01:30:58]} {[%emt
00:01:23]} e5 {[%clk 01:32:44]} {[%emt 00:00:06]} 7. d5 {[%clk 01:31:21]}
{[%emt 00:00:07]} h5 {[%clk 01:33:10]} {[%emt 00:00:04]} 8. Nf3 {[%clk
01:30:17]} {[%emt 00:01:34]} Bh6 {[%clk 01:33:35]} {[%emt 00:00:05]} 9. Bxh6
{[%clk 01:30:07]} {[%emt 00:00:39]} Rxh6 {[%clk 01:34:01]} {[%emt 00:00:04]} 10.
Qd2 {[%clk 01:30:20]} {[%emt 00:00:17]} Rh8 {[%clk 01:34:27]} {[%emt 00:00:05]}
11. Bd3 {[%clk 01:30:05]} {[%emt 00:00:45]} a5 {[%clk 01:34:02]} {[%emt
00:00:55]} 12. O-O {[%clk 01:29:05]} {[%emt 00:01:29]} h4 {[%clk 01:29:52]}
{[%emt 00:04:40]} 13. Nh2 {[%clk 01:08:52]} {[%emt 00:20:44]} Nh5 {[%clk
01:25:40]} {[%emt 00:04:42]} 14. Ne2 {[%clk 01:07:03]} {[%emt 00:02:18]} Nc5
{[%clk 01:06:13]} {[%emt 00:19:57]} 15. Bc2 {[%clk 00:57:55]} {[%emt 00:09:38]}
Bd7 {[%clk 00:46:12]} {[%emt 00:20:31]} 16. f4 {[%clk 00:45:58]} {[%emt
00:12:27]} exf4 {[%clk 00:46:28]} {[%emt 00:00:15]} 17. Nxf4 {[%clk 00:44:41]}
{[%emt 00:01:46]} Qg5 {[%clk 00:44:39]} {[%emt 00:02:19]} 18. Qc3 {[%clk
00:40:01]} {[%emt 00:05:10]} Nxf4 {[%clk 00:38:52]} {[%emt 00:06:18]} 19. Rxf4
{[%clk 00:40:14]} {[%emt 00:00:16]} Qe5 {[%clk 00:39:19]} {[%emt 00:00:05]} 20.
Raf1 {[%clk 00:33:23]} {[%emt 00:07:20]} Qxc3 {[%clk 00:39:42]} {[%emt
00:00:06]} 21. bxc3 {[%clk 00:33:49]} {[%emt 00:00:04]} Rf8 {[%clk 00:30:03]}
{[%emt 00:10:09]} 22. e5 {[%clk 00:31:48]} {[%emt 00:02:31]} dxe5 {[%clk
00:28:35]} {[%emt 00:01:58]} 23. Rxf7 {[%clk 00:32:07]} {[%emt 00:00:11]} Rxf7
{[%clk 00:29:02]} {[%emt 00:00:03]} 24. Bxg6 {[%clk 00:32:29]} {[%emt
00:00:07]} Ra6 {[%clk 00:29:29]} {[%emt 00:00:04]} 25. Bxf7+ {[%clk 00:32:29]}
{[%emt 00:00:30]} Ke7 {[%clk 00:29:55]} {[%emt 00:00:05]} 26. Bh5 {[%clk
00:31:43]} {[%emt 00:01:15]} Rf6 {[%clk 00:15:28]} {[%emt 00:14:57]} 27. Re1
{[%clk 00:29:12]} {[%emt 00:03:01]} e4 {[%clk 00:12:51]} {[%emt 00:03:07]} 28.
Nf1 {[%clk 00:22:40]} {[%emt 00:07:02]} Rf4 {[%clk 00:11:46]} {[%emt 00:01:36]}
29. Ne3 {[%clk 00:15:49]} {[%emt 00:07:20]} Kf6 {[%clk 00:11:58]} {[%emt
00:00:18]} 30. Rd1 {[%clk 00:10:28]} {[%emt 00:05:50]} Ke5 {[%clk 00:07:11]}
{[%emt 00:05:18]} 31. d6 {[%clk 00:06:58]} {[%emt 00:04:00]} c6 {[%clk
00:04:27]} {[%emt 00:03:14]} 32. Nd5 {[%clk 00:06:29]} {[%emt 00:00:59]} Rf8
{[%clk 00:01:41]} {[%emt 00:03:17]} 33. Ne7 {[%clk 00:06:15]} {[%emt 00:00:43]}
Kf6 {[%clk 00:02:02]} {[%emt 00:00:09]} 34. Rf1+ {[%clk 00:01:32]} {[%emt
00:05:13]} Kg7 {[%clk 00:02:28]} {[%emt 00:00:05]} 35. Rxf8 {[%clk 00:01:47]}
{[%emt 00:00:15]} Kxf8 {[%clk 00:02:54]} {[%emt 00:00:04]} 36. Ng6+ {[%clk
00:02:12]} {[%emt 00:00:05]} Kf7 {[%clk 00:01:58]} {[%emt 00:01:27]} 37. Nxh4+
{[%clk 00:01:22]} {[%emt 00:01:20]} Ke6 {[%clk 00:01:27]} {[%emt 00:01:01]} 38.
Kf2 {[%clk 00:01:16]} {[%emt 00:00:35]} Kxd6 {[%clk 00:01:16]} {[%emt
00:00:41]} 39. Ke3 {[%clk 00:00:36]} {[%emt 00:01:10]} Na4 {[%clk 00:01:33]}
{[%emt 00:00:13]} 0-1

[Event "Mitropa Cup 2023 Open selection"]
[Site "Mali Losinj, Croatia"]
[Date "2023.04.11"]
[Round "1.9"]
[White "Pechac, Jergus"]
[Black "Palac, Mladen"]
[Result "1-0"]
[TimeControl "90 min + 30 min after 40 moves + 30 sec increment from move 1"]
[WhiteElo "2610"]
[BlackElo "2489"]

1. d4 {[%clk 01:30:57]} {[%emt 00:00:02]} Nf6 {[%clk 01:30:54]} {[%emt
00:00:07]} 2. Nf3 {[%clk 01:30:56]} {[%emt 00:00:31]} d5 {[%clk 01:31:06]}
{[%emt 00:00:19]} 3. Bf4 {[%clk 01:31:18]} {[%emt 00:00:07]} c5 {[%clk
01:24:37]} {[%emt 00:07:00]} 4. e3 {[%clk 01:30:29]} {[%emt 00:01:18]} e6
{[%clk 01:25:05]} {[%emt 00:00:02]} 5. c3 {[%clk 01:30:04]} {[%emt 00:00:54]}
Nbd7 {[%clk 01:14:08]} {[%emt 00:11:29]} 6. Nbd2 {[%clk 01:26:43]} {[%emt
00:03:50]} Be7 {[%clk 01:13:47]} {[%emt 00:00:52]} 7. Ne5 {[%clk 01:24:43]}
{[%emt 00:02:29]} Nxe5 {[%clk 01:05:30]} {[%emt 00:08:47]} 8. Bxe5 {[%clk
01:24:43]} {[%emt 00:00:30]} Bd7 {[%clk 01:02:15]} {[%emt 00:03:46]} 9. a4
{[%clk 01:17:13]} {[%emt 00:07:59]} Bc6 {[%clk 00:54:26]} {[%emt 00:08:20]} 10.
Bd3 {[%clk 01:16:32]} {[%emt 00:01:10]} Bd6 {[%clk 00:53:02]} {[%emt 00:01:55]}
11. f4 {[%clk 01:15:36]} {[%emt 00:01:24]} O-O {[%clk 00:48:31]} {[%emt
00:05:02]} 12. O-O {[%clk 01:14:10]} {[%emt 00:01:55]} Qe7 {[%clk 00:43:14]}
{[%emt 00:05:47]} 13. Rf3 {[%clk 01:08:51]} {[%emt 00:05:49]} g6 {[%clk
00:37:46]} {[%emt 00:05:59]} 14. Rh3 {[%clk 01:06:03]} {[%emt 00:03:17]} Nd7
{[%clk 00:20:56]} {[%emt 00:17:21]} 15. Qh5 {[%clk 01:06:19]} {[%emt 00:00:14]}
1-0